{"text_format":"3","workbook":"xlsx","n_sheets":1,"sheets":["FÜRDŐSZOBA-FELÚJÍTÁSI KÖLTSÉGEK"],"not_rendered":{"defined_names":3},"read":"whole","date_system":"1900"}

{"sheet":"FÜRDŐSZOBA-FELÚJÍTÁSI KÖLTSÉGEK","index":0,"n_rows":24,"n_cols":10,"rows_kept":24,"merged":[[1,1,2,3],[2,4,2,6],[2,7,2,9],[22,1,22,3],[22,4,22,6],[22,7,22,9],[23,1,23,3],[23,4,23,6],[23,7,23,9]]}
[null,"Fürdőszoba-felújítási költség kiszámítása"]
[null,"MEGJEGYZÉS: A táblázat különböző oszlopaiban látható, ha a tényleges összeg túllépi a becsült költséget.  A piros számok a becsült értéket meghaladó (negatív), a fekete számok az érték alatti költséget jelenítik meg. "]
[{"$nulls":4},"Részletezett költség (Ft)",null,null,"Teljes költség (Ft)"]
[null,"Terület","Tételek","Mennyiség","Becsült","Tényleges","Különbség","Becsült ","Tényleges ","Különbség "]
[null,"Kád/zuhanykabin","Kád, öntöttvas, 150 cm, normál kivitelű",1,{"v":250,"d":"250.00 Ft"},{"$f":"RANDBETWEEN(E5+2,E5+20)","v":{"v":266,"d":"266.00 Ft"}},{"$f":"IFERROR(Költségek[[#This Row],[Becsült]]-Költségek[[#This Row],[Tényleges]], \"\")","v":{"v":-16,"d":"-16.00 Ft"}},{"$f":"IFERROR(Költségek[[#This Row],[Mennyiség]]*Költségek[[#This Row],[Becsült]], \"\")","v":{"v":250,"d":"250.00 Ft"}},{"$f":"IFERROR(Költségek[[#This Row],[Mennyiség]]*Költségek[[#This Row],[Tényleges]], \"\")","v":{"v":266,"d":"266.00 Ft"}},{"$f":"IFERROR(Költségek[[#This Row],[Becsült ]]-Költségek[[#This Row],[Tényleges ]], \"\")","v":{"v":-16,"d":"-16.00 Ft"}}]
[null,"Kád/zuhanykabin","Zuhanyajtók, zsanéros, normál kivitelű",1,{"v":200,"d":"200.00 Ft"},{"v":206,"d":"206.00 Ft"},{"$f":"IFERROR(Költségek[[#This Row],[Becsült]]-Költségek[[#This Row],[Tényleges]], \"\")","v":{"v":-6,"d":"-6.00 Ft"}},{"$f":"IFERROR(Költségek[[#This Row],[Mennyiség]]*Költségek[[#This Row],[Becsült]], \"\")","v":{"v":200,"d":"200.00 Ft"}},{"$f":"IFERROR(Költségek[[#This Row],[Mennyiség]]*Költségek[[#This Row],[Tényleges]], \"\")","v":{"v":206,"d":"206.00 Ft"}},{"$f":"IFERROR(Költségek[[#This Row],[Becsült ]]-Költségek[[#This Row],[Tényleges ]], \"\")","v":{"v":-6,"d":"-6.00 Ft"}}]
[null,"Kád/zuhanykabin","Zuhanyfej, normál kivitelű",1,{"v":50,"d":"50.00 Ft"},{"v":59,"d":"59.00 Ft"},{"$f":"IFERROR(Költségek[[#This Row],[Becsült]]-Költségek[[#This Row],[Tényleges]], \"\")","v":{"v":-9,"d":"-9.00 Ft"}},{"$f":"IFERROR(Költségek[[#This Row],[Mennyiség]]*Költségek[[#This Row],[Becsült]], \"\")","v":{"v":50,"d":"50.00 Ft"}},{"$f":"IFERROR(Költségek[[#This Row],[Mennyiség]]*Költségek[[#This Row],[Tényleges]], \"\")","v":{"v":59,"d":"59.00 Ft"}},{"$f":"IFERROR(Költségek[[#This Row],[Becsült ]]-Költségek[[#This Row],[Tényleges ]], \"\")","v":{"v":-9,"d":"-9.00 Ft"}}]
[null,"Kád/zuhanykabin","Kád fali panel, normál kivitelű",1,{"v":200,"d":"200.00 Ft"},{"v":218,"d":"218.00 Ft"},{"$f":"IFERROR(Költségek[[#This Row],[Becsült]]-Költségek[[#This Row],[Tényleges]], \"\")","v":{"v":-18,"d":"-18.00 Ft"}},{"$f":"IFERROR(Költségek[[#This Row],[Mennyiség]]*Költségek[[#This Row],[Becsült]], \"\")","v":{"v":200,"d":"200.00 Ft"}},{"$f":"IFERROR(Költségek[[#This Row],[Mennyiség]]*Költségek[[#This Row],[Tényleges]], \"\")","v":{"v":218,"d":"218.00 Ft"}},{"$f":"IFERROR(Költségek[[#This Row],[Becsült ]]-Költségek[[#This Row],[Tényleges ]], \"\")","v":{"v":-18,"d":"-18.00 Ft"}}]
[null,"Szekrények","Orvosi szekrény, 60 cm, luxus",1,{"v":200,"d":"200.00 Ft"},{"v":215,"d":"215.00 Ft"},{"$f":"IFERROR(Költségek[[#This Row],[Becsült]]-Költségek[[#This Row],[Tényleges]], \"\")","v":{"v":-15,"d":"-15.00 Ft"}},{"$f":"IFERROR(Költségek[[#This Row],[Mennyiség]]*Költségek[[#This Row],[Becsült]], \"\")","v":{"v":200,"d":"200.00 Ft"}},{"$f":"IFERROR(Költségek[[#This Row],[Mennyiség]]*Költségek[[#This Row],[Tényleges]], \"\")","v":{"v":215,"d":"215.00 Ft"}},{"$f":"IFERROR(Költségek[[#This Row],[Becsült ]]-Költségek[[#This Row],[Tényleges ]], \"\")","v":{"v":-15,"d":"-15.00 Ft"}}]
[null,"Szekrények","Öltözőasztal modul, 75 cm, normál kivitelű",2,{"v":100,"d":"100.00 Ft"},{"v":106,"d":"106.00 Ft"},{"$f":"IFERROR(Költségek[[#This Row],[Becsült]]-Költségek[[#This Row],[Tényleges]], \"\")","v":{"v":-6,"d":"-6.00 Ft"}},{"$f":"IFERROR(Költségek[[#This Row],[Mennyiség]]*Költségek[[#This Row],[Becsült]], \"\")","v":{"v":200,"d":"200.00 Ft"}},{"$f":"IFERROR(Költségek[[#This Row],[Mennyiség]]*Költségek[[#This Row],[Tényleges]], \"\")","v":{"v":212,"d":"212.00 Ft"}},{"$f":"IFERROR(Költségek[[#This Row],[Becsült ]]-Költségek[[#This Row],[Tényleges ]], \"\")","v":{"v":-12,"d":"-12.00 Ft"}}]
[null,"Munkalapok","Kerámiacsempe, luxus (menny. m-ben)",5,{"v":22.5,"d":"22.50 Ft"},{"v":39,"d":"39.00 Ft"},{"$f":"IFERROR(Költségek[[#This Row],[Becsült]]-Költségek[[#This Row],[Tényleges]], \"\")","v":{"v":-16.5,"d":"-16.50 Ft"}},{"$f":"IFERROR(Költségek[[#This Row],[Mennyiség]]*Költségek[[#This Row],[Becsült]], \"\")","v":{"v":112.5,"d":"112.50 Ft"}},{"$f":"IFERROR(Költségek[[#This Row],[Mennyiség]]*Költségek[[#This Row],[Tényleges]], \"\")","v":{"v":195,"d":"195.00 Ft"}},{"$f":"IFERROR(Költségek[[#This Row],[Becsült ]]-Költségek[[#This Row],[Tényleges ]], \"\")","v":{"v":-82.5,"d":"-82.50 Ft"}}]
[null,"Csapok","Csap, kád, normál kivitelű",1,{"v":90,"d":"90.00 Ft"},{"v":109,"d":"109.00 Ft"},{"$f":"IFERROR(Költségek[[#This Row],[Becsült]]-Költségek[[#This Row],[Tényleges]], \"\")","v":{"v":-19,"d":"-19.00 Ft"}},{"$f":"IFERROR(Költségek[[#This Row],[Mennyiség]]*Költségek[[#This Row],[Becsült]], \"\")","v":{"v":90,"d":"90.00 Ft"}},{"$f":"IFERROR(Költségek[[#This Row],[Mennyiség]]*Költségek[[#This Row],[Tényleges]], \"\")","v":{"v":109,"d":"109.00 Ft"}},{"$f":"IFERROR(Költségek[[#This Row],[Becsült ]]-Költségek[[#This Row],[Tényleges ]], \"\")","v":{"v":-19,"d":"-19.00 Ft"}}]
[null,"Csapok","Csap, zuhany, egykaros, normál kivitelű)",1,{"v":115,"d":"115.00 Ft"},{"v":128,"d":"128.00 Ft"},{"$f":"IFERROR(Költségek[[#This Row],[Becsült]]-Költségek[[#This Row],[Tényleges]], \"\")","v":{"v":-13,"d":"-13.00 Ft"}},{"$f":"IFERROR(Költségek[[#This Row],[Mennyiség]]*Költségek[[#This Row],[Becsült]], \"\")","v":{"v":115,"d":"115.00 Ft"}},{"$f":"IFERROR(Költségek[[#This Row],[Mennyiség]]*Költségek[[#This Row],[Tényleges]], \"\")","v":{"v":128,"d":"128.00 Ft"}},{"$f":"IFERROR(Költségek[[#This Row],[Becsült ]]-Költségek[[#This Row],[Tényleges ]], \"\")","v":{"v":-13,"d":"-13.00 Ft"}}]
[null,"Csapok","Mosdó csaptelep, normál kivitelű",1,{"v":95,"d":"95.00 Ft"},{"v":115,"d":"115.00 Ft"},{"$f":"IFERROR(Költségek[[#This Row],[Becsült]]-Költségek[[#This Row],[Tényleges]], \"\")","v":{"v":-20,"d":"-20.00 Ft"}},{"$f":"IFERROR(Költségek[[#This Row],[Mennyiség]]*Költségek[[#This Row],[Becsült]], \"\")","v":{"v":95,"d":"95.00 Ft"}},{"$f":"IFERROR(Költségek[[#This Row],[Mennyiség]]*Költségek[[#This Row],[Tényleges]], \"\")","v":{"v":115,"d":"115.00 Ft"}},{"$f":"IFERROR(Költségek[[#This Row],[Becsült ]]-Költségek[[#This Row],[Tényleges ]], \"\")","v":{"v":-20,"d":"-20.00 Ft"}}]
[null,"Burkolás","Kerámiacsempe, normál kivitelű (menny. n.m-ben)",35,{"v":12,"d":"12.00 Ft"},{"v":23,"d":"23.00 Ft"},{"$f":"IFERROR(Költségek[[#This Row],[Becsült]]-Költségek[[#This Row],[Tényleges]], \"\")","v":{"v":-11,"d":"-11.00 Ft"}},{"$f":"IFERROR(Költségek[[#This Row],[Mennyiség]]*Költségek[[#This Row],[Becsült]], \"\")","v":{"v":420,"d":"420.00 Ft"}},{"$f":"IFERROR(Költségek[[#This Row],[Mennyiség]]*Költségek[[#This Row],[Tényleges]], \"\")","v":{"v":805,"d":"805.00 Ft"}},{"$f":"IFERROR(Költségek[[#This Row],[Becsült ]]-Költségek[[#This Row],[Tényleges ]], \"\")","v":{"v":-385,"d":"-385.00 Ft"}}]
[null,"Hardver","Törülközőtartó, normál kivitelű",2,{"v":15,"d":"15.00 Ft"},{"v":22,"d":"22.00 Ft"},{"$f":"IFERROR(Költségek[[#This Row],[Becsült]]-Költségek[[#This Row],[Tényleges]], \"\")","v":{"v":-7,"d":"-7.00 Ft"}},{"$f":"IFERROR(Költségek[[#This Row],[Mennyiség]]*Költségek[[#This Row],[Becsült]], \"\")","v":{"v":30,"d":"30.00 Ft"}},{"$f":"IFERROR(Költségek[[#This Row],[Mennyiség]]*Költségek[[#This Row],[Tényleges]], \"\")","v":{"v":44,"d":"44.00 Ft"}},{"$f":"IFERROR(Költségek[[#This Row],[Becsült ]]-Költségek[[#This Row],[Tényleges ]], \"\")","v":{"v":-14,"d":"-14.00 Ft"}}]
[null,"Hardver","WC-papír tartó",1,{"v":10,"d":"10.00 Ft"},{"v":20,"d":"20.00 Ft"},{"$f":"IFERROR(Költségek[[#This Row],[Becsült]]-Költségek[[#This Row],[Tényleges]], \"\")","v":{"v":-10,"d":"-10.00 Ft"}},{"$f":"IFERROR(Költségek[[#This Row],[Mennyiség]]*Költségek[[#This Row],[Becsült]], \"\")","v":{"v":10,"d":"10.00 Ft"}},{"$f":"IFERROR(Költségek[[#This Row],[Mennyiség]]*Költségek[[#This Row],[Tényleges]], \"\")","v":{"v":20,"d":"20.00 Ft"}},{"$f":"IFERROR(Költségek[[#This Row],[Becsült ]]-Költségek[[#This Row],[Tényleges ]], \"\")","v":{"v":-10,"d":"-10.00 Ft"}}]
[null,"Világítás","Süllyesztett lámpák, normál kivitelű",4,{"v":25,"d":"25.00 Ft"},{"v":40,"d":"40.00 Ft"},{"$f":"IFERROR(Költségek[[#This Row],[Becsült]]-Költségek[[#This Row],[Tényleges]], \"\")","v":{"v":-15,"d":"-15.00 Ft"}},{"$f":"IFERROR(Költségek[[#This Row],[Mennyiség]]*Költségek[[#This Row],[Becsült]], \"\")","v":{"v":100,"d":"100.00 Ft"}},{"$f":"IFERROR(Költségek[[#This Row],[Mennyiség]]*Költségek[[#This Row],[Tényleges]], \"\")","v":{"v":160,"d":"160.00 Ft"}},{"$f":"IFERROR(Költségek[[#This Row],[Becsült ]]-Költségek[[#This Row],[Tényleges ]], \"\")","v":{"v":-60,"d":"-60.00 Ft"}}]
[null,"Mosdókagylók","WC, normál kivitelű",2,{"v":60,"d":"60.00 Ft"},{"v":66,"d":"66.00 Ft"},{"$f":"IFERROR(Költségek[[#This Row],[Becsült]]-Költségek[[#This Row],[Tényleges]], \"\")","v":{"v":-6,"d":"-6.00 Ft"}},{"$f":"IFERROR(Költségek[[#This Row],[Mennyiség]]*Költségek[[#This Row],[Becsült]], \"\")","v":{"v":120,"d":"120.00 Ft"}},{"$f":"IFERROR(Költségek[[#This Row],[Mennyiség]]*Költségek[[#This Row],[Tényleges]], \"\")","v":{"v":132,"d":"132.00 Ft"}},{"$f":"IFERROR(Költségek[[#This Row],[Becsült ]]-Költségek[[#This Row],[Tényleges ]], \"\")","v":{"v":-12,"d":"-12.00 Ft"}}]
[null,"Egyéb",null,1,{"v":20,"d":"20.00 Ft"},{"v":24,"d":"24.00 Ft"},{"$f":"IFERROR(Költségek[[#This Row],[Becsült]]-Költségek[[#This Row],[Tényleges]], \"\")","v":{"v":-4,"d":"-4.00 Ft"}},{"$f":"IFERROR(Költségek[[#This Row],[Mennyiség]]*Költségek[[#This Row],[Becsült]], \"\")","v":{"v":20,"d":"20.00 Ft"}},{"$f":"IFERROR(Költségek[[#This Row],[Mennyiség]]*Költségek[[#This Row],[Tényleges]], \"\")","v":{"v":24,"d":"24.00 Ft"}},{"$f":"IFERROR(Költségek[[#This Row],[Becsült ]]-Költségek[[#This Row],[Tényleges ]], \"\")","v":{"v":-4,"d":"-4.00 Ft"}}]
[null,"Részösszeg",null,null,{"$f":"SUBTOTAL(109,Költségek[Becsült])","v":{"v":1464.5,"d":"1,464.50 Ft"}},{"$f":"SUBTOTAL(109,Költségek[Tényleges])","v":{"v":1656,"d":"1,656.00 Ft"}},{"$f":"SUBTOTAL(109,Költségek[Különbség])","v":{"v":-191.5,"d":"-191.50 Ft"}},{"$f":"SUBTOTAL(109,Költségek[[Becsült ]])","v":{"v":2212.5,"d":"2,212.50 Ft"}},{"$f":"SUBTOTAL(109,Költségek[[Tényleges ]])","v":{"v":2908,"d":"2,908.00 Ft"}},{"$f":"SUBTOTAL(109,Költségek[[Különbség ]])","v":{"v":-695.5,"d":"-695.50 Ft"}}]
[]
[null,"Váratlan költségek (plusz 30% becsült)",null,null,{"$f":"IFERROR(Költségek[[#Totals],[Becsült]]*0.3, \"\")","v":{"v":439.34999999999997,"d":"439.35 Ft"}},null,null,{"$f":"IFERROR(Költségek[[#Totals],[Becsült ]]*0.3, \"\")","v":{"v":663.75,"d":"663.75 Ft"}}]
[null,"Teljes költség",null,null,{"$f":"IFERROR(SUM(E21:E21), \"\")","v":{"v":1464.5,"d":"1,464.50 Ft"}},null,null,{"$f":"IFERROR(SUM(Költségek[[#Totals],[Becsült ]],Többlet), \"\")","v":{"v":2876.25,"d":"2,876.25 Ft"}}]